[Event "French-ch U16-U18 2024"]
[Site "Agen"]
[Date "2024.04.21"]
[Round "9.18"]
[White "Warnier, Yanis"]
[Black "Bat, Bilguun"]
[Result "1-0"]
[ECO "B53"]
[WhiteElo "2116"]
[BlackElo "2360"]
[Annotator "TA"]
[PlyCount "137"]
[EventDate "2024.04.14"]
[EventType "swiss"]
[EventCountry "FRA"]
[SourceTitle "playchess.com"]
[Source "ChessBase"]
[SourceQuality "1"]
[TimeControl "5400+30"]

{[%evp 32,137,54,53,203,203,204,205,207,207,210,204,197,198,198,196,201,213,196,193,195,185,179,175,171,165,163,168,175,179,234,253,247,208,204,144,241,133,158,-23,-23,-29,8,0,0,0,0,-18,0,-12,-12,-10,-17,-16,-18,-18,-8,-8,14,0,0,0,0,0,8,0,0,0,0,0,0,-2,16,0,16,0,0,0,0,-29997,37,23,20,16,20,0,0,0,618,577,552,493,723,405,1395,1177,29978,29979,29984,29985,29983,29984,29986,29987,29987,29984,29988,29984]} 1. e4 {[%emt 0:02:57]} c5 {[%emt 0:00:13]} 2. Nf3 {[%emt 0:00:07]} d6 {[%emt 0:00:09]} 3. d4 {[%emt 0:00:03]} cxd4 {[%emt 0:00:08]} 4. Qxd4 {[%emt 0:00:12]} Nc6 {[%emt 0:01:03]} 5. Qe3 {[%emt 0:00:16]} g6 {[%emt 0:01:38]} 6. Be2 {[%emt 0:01:16] B53: Sicilian: 2...d6: Lines with Qxd4.} Bg7 {[%emt 0:00:19]} 7. h3 {[%emt 0:00:59]} Nf6 {[%emt 0:00:49]} 8. O-O {[%emt 0:00:22]} O-O {[%emt 0:00:50]} 9. Rd1 {[%emt 0:01:42]} Be6 {[%emt 0:03:02]} 10. Nc3 {[%emt 0:04:26]} Rc8 {[%emt 0:02:38]} 11. a3 {[%emt 0:12:37]} a6 {[%emt 0:02:17]} 12. Rb1 {[%emt 0:24:27]} Na5 $146 {[%emt 0:18:39]} ({Predecessor:} 12... b5 13. Nd5 Bxd5 14. exd5 Na5 15. c3 Nc4 16. Qg5 Re8 17. Qh4 Qd7 18. Bh6 Nb6 {½-½ Brkic,A (2593)-Paravyan,D (2653) Molodezhka-CRO online blitz 2020}) 13. Nd4 {[%emt 0:04:28]} Bd7 {[%emt 0:07:59]} 14. b3 {[%emt 0:06:52]} Nc6 {[%emt 0:06:12]} 15. Nf3 {[%emt 0:08:18]} Nh5 {[%emt 0:04:26]} 16. Nd5 {[%emt 0:02:56]} f5 {[%emt 0:05:11]} 17. exf5 {[%emt 0:02:00]} gxf5 {[%emt 0:04:38]} ({Better is} 17... Bxf5 $14 18. Rd2 Nf6) 18. Ng5 $1 $18 {[%emt 0:02:43]} e5 {[%emt 0:02:39]} 19. Qf3 {[%emt 0:02:49]} (19. Bxh5 f4 20. Bf7+ Kh8 21. Nxf4 exf4 (21... Qxg5 $2 22. Ng6+ $18) 22. Qxf4 h6) 19... Nf6 {[%emt 0:03:32]} 20. Nxf6+ {[%emt 0:00:19]} Qxf6 {[%emt 0:03:20]} 21. Bc4+ {[%emt 0:00:22]} Kh8 {[%emt 0:00:31]} 22. Qh5 {[%emt 0:00:21]} h6 {[%emt 0:01:57]} 23. Nf7+ {[%emt 0:00:18]} Rxf7 {[%emt 0:00:05]} 24. Qxf7 {[%emt 0:00:41]} Qxf7 {[%emt 0:02:25]} 25. Bxf7 {[%emt 0:00:02]} Nd4 {[%emt 0:00:13]} 26. c4 {[%emt 0:03:26]} Bc6 {[%emt 0:03:41]} 27. Kf1 {[%emt 0:05:53]} Be4 {[%emt 0:03:04]} 28. Rb2 {[%emt 0:01:05]} f4 {[%emt 0:00:24]} 29. f3 {[%emt 0:02:47]} Bc6 {[%emt 0:01:17]} 30. Rbd2 {[%emt 0:01:56]} Nxb3 {[%emt 0:07:38]} (30... Rc7 {might work better.} 31. Bg6 d5 32. cxd5 Bxd5) 31. Rxd6 $18 {[%emt 0:00:20]} Nxc1 {[%emt 0:00:07]} 32. Rxc1 {[%emt 0:01:16]} Bf8 {[%emt 0:00:05]} 33. Rd3 {[%emt 0:00:22]} Bc5 {[%emt 0:00:07]} (33... Rc7 $16 {is a better defense.} 34. Bd5 Ba4) 34. Rb1 {[%emt 0:03:05]} ({White should play} 34. Bd5 $18) 34... e4 {[%emt 0:03:42] [#]} 35. Rd5 $2 {[%emt 0:03:20]} ({Stronger than} 35. fxe4 Bxe4 36. Rbb3 Bxd3+ 37. Rxd3 Kg7 $11) (35. Rdb3 $1 $16 {[%mdl 512]}) 35... Bxd5 $11 {[%emt 0:00:47]} 36. Bxd5 {[%emt 0:00:23]} exf3 {[%emt 0:00:17]} (36... e3 {seems wilder.} 37. Bxb7 Rb8 38. a4 Kg7) 37. gxf3 {[%emt 0:00:31]} (37. Rxb7 $2 {loses.} f2 (37... fxg2+ 38. Kxg2 Bxa3 39. Kf3 $14) 38. Rb1 h5 $17) 37... b6 {[%emt 0:00:08]} 38. a4 {[%emt 0:01:14]} Rc7 {[%emt 0:00:45]} 39. Rb2 {[%emt 0:00:26]} Kg7 {[%emt 0:00:18]} 40. Ke1 {[%emt 0:01:28]} Kf6 {[%emt 0:00:17]} 41. Rg2 {[%emt 0:00:15]} Re7+ {[%emt 0:00:34]} 42. Be4 {[%emt 0:00:45]} Ke5 {[%emt 0:00:15]} 43. Rg6 {[%emt 0:01:16]} Kd4 {[%emt 0:00:06]} 44. Rxh6 {[%emt 0:00:08]} Ke3 {[%emt 0:01:58]} 45. Kd1 {[%emt 0:00:23]} Rg7 {[%emt 0:00:33]} 46. a5 {[%emt 0:00:42]} bxa5 {[%emt 0:00:51]} 47. Rxa6 {[%emt 0:00:14]} Rg1+ {[%emt 0:00:18]} 48. Kc2 {[%emt 0:01:42]} Ra1 {[%emt 0:01:11]} 49. Kb3 {[%emt 0:00:30]} Ra3+ {[%emt 0:00:09]} (49... Kd2 $5 50. Kb2 $8 Ra4 $17) 50. Kb2 {[%emt 0:00:00]} Ra4 {[%emt 0:00:09]} 51. Bd5 {[%emt 0:00:00]} Bd4+ {[%emt 0:01:48]} 52. Kb3 {[%emt 0:00:29]} Ra1 {[%emt 0:00:05]} 53. Ra8 {[%emt 0:00:31]} Kd2 {[%emt 0:00:08]} 54. Be4 {[%emt 0:00:13]} Bc5 {[%emt 0:00:48]} 55. h4 $2 {[%emt 0:00:17][%mdl 8192] [#]} (55. Kb2 $11 Bd4+ 56. Kb3) 55... Ra3+ $2 {[%emt 0:02:13]} (55... Kc1 $1 {mates} 56. Rxa5 Rxa5 57. Bh7 Ra3#) 56. Kb2 $11 {[%emt 0:00:05]} a4 {[%emt 0:00:05]} 57. Rd8+ {[%emt 0:00:12]} Ke3 $1 {[%emt 0:00:12]} 58. h5 {[%emt 0:00:34]} (58. Bc2 $5 Kxf3 59. h5 $16) 58... Rb3+ {[%emt 0:00:04]} 59. Ka2 {[%emt 0:00:25]} Rb6 $2 {[%emt 0:00:16][%mdl 8192]} (59... Ra3+ $11 60. Kb2 Rb3+ 61. Kc2 Bd4) 60. Rd3+ $18 {[%emt 0:00:18]} Ke2 {[%emt 0:00:07]} 61. Rd5 {[%emt 0:00:11]} Bf8 {[%emt 0:09:17]} (61... Be3 $142 62. Rf5 Kd2) 62. c5 {[%emt 0:00:07]} Rb4 {[%emt 0:00:18]} (62... Rc6 $142 63. Rd8 Rxc5 64. Rxf8 Rxh5 65. Rxf4 Ke3) 63. Ka3 {[%emt 0:00:48]} Rxe4 {[%emt 0:01:47]} 64. fxe4 {[%emt 0:00:06]} f3 {[%emt 0:00:04]} 65. Rf5 {[%emt 0:00:07]} Be7 {[%emt 0:00:04]} 66. Kxa4 {[%emt 0:00:39]} f2 {[%emt 0:00:05]} 67. c6 {[%emt 0:00:09]} Bd6 {[%emt 0:00:08]} 68. h6 {[%emt 0:00:12]} Ke3 {[%emt 0:00:11]} 69. Rxf2 {[%emt 0:00:06]} 1-0

[Event "French-ch U16-U18 2024"]
[Site "Agen"]
[Date "2024.04.21"]
[Round "9.19"]
[White "De Carvalho Massabo, Raphael"]
[Black "Pichon, Ewen"]
[Result "0-1"]
[ECO "C55"]
[WhiteElo "2105"]
[BlackElo "2252"]
[Annotator "TA"]
[PlyCount "66"]
[EventDate "2024.04.14"]
[EventType "swiss"]
[EventCountry "FRA"]
[SourceTitle "playchess.com"]
[Source "ChessBase"]
[SourceQuality "1"]
[TimeControl "5400+30"]

{[%evp 15,66,27,43,17,20,13,52,26,36,30,20,0,0,-61,-43,-78,-85,-84,-70,-73,-71,-69,-75,-131,-147,-149,-152,-171,-150,-220,-224,-226,-218,-227,-235,-211,-160,-426,-412,-424,-424,-427,-394,-386,-427,-445,-443,-449,-448,-552,-526,-878,-878]} 1. e4 {[%emt 0:00:07]} e5 {[%emt 0:00:17]} 2. Nf3 {[%emt 0:00:05]} Nc6 {[%emt 0:00:05]} 3. Bc4 {[%emt 0:00:03]} Nf6 {[%emt 0:00:19]} 4. d3 {[%emt 0:00:04]} h6 {[%emt 0:00:19]} 5. O-O {[%emt 0:00:49]} d6 {[%emt 0:00:10]} 6. a4 {[%emt 0:00:06]} g6 {[%emt 0:00:08]} 7. Nc3 {[%emt 0:01:54]} Bg7 {[%emt 0:00:47]} 8. h3 {[%emt 0:10:01]} O-O {[%emt 0:00:35]} 9. a5 {[%emt 0:02:50]} a6 {[%emt 0:00:04]} 10. Re1 {[%emt 0:05:53]} Qe8 {[%emt 0:00:12]} 11. Ra3 {[%emt 0:09:06][%cal Ba1a3,Ba3b3,Bb3b7][%mdl 32] White is slightly better.} Kh7 {[%emt 0:04:36]} 12. Be3 {[%emt 0:06:10]} Be6 {[%emt 0:02:25]} 13. Nd5 {[%emt 0:00:53]} Bxd5 {[%emt 0:05:14]} 14. exd5 {[%emt 0:00:14]} (14. Bxd5 $11 Nxd5 15. exd5) 14... Ne7 $15 {[%emt 0:00:05]} 15. Rb3 {[%emt 0:01:52]} Nfxd5 {[%emt 0:04:49] Black converts the advantage convincingly.} 16. Rxb7 {[%emt 0:01:36]} Qc6 {[%emt 0:00:44]} 17. Bxd5 $1 {[%emt 0:02:21]} Nxd5 {[%emt 0:02:00]} 18. Rb3 {[%emt 0:00:08]} Rab8 {[%emt 0:01:53]} 19. Nd2 {[%emt 0:05:22] [#]} (19. Rxb8 $142 Rxb8 20. Bc1) 19... f5 $1 $17 {[%emt 0:02:54] White must now prevent ...f4. Black is more active.} 20. Rxb8 {[%emt 0:02:18]} Rxb8 {[%emt 0:00:15]} 21. Nb3 {[%emt 0:00:03] [#]} Nb4 $1 {[%emt 0:01:41]} 22. Re2 {[%emt 0:01:12]} (22. Na1 $17) 22... f4 $40 {[%emt 0:00:44][%mdl 128] Black wants a kill.} 23. Bc1 {[%emt 0:00:51]} f3 {[%emt 0:00:39]} 24. gxf3 {[%emt 0:10:33]} Qxf3 {[%emt 0:00:15]} 25. Qf1 {[%emt 0:00:45]} Qc6 {[%emt 0:11:20]} ({But not} 25... Nxd3 $2 26. Re3 Qxf2+ 27. Qxf2 Nxf2 28. Kxf2 $18) 26. d4 $2 {[%emt 0:07:46]} (26. Qd1 $17) 26... Nxc2 {[%emt 0:05:23]} (26... exd4 $2 27. Re7 Nd5 (27... Nxc2 28. Qe2 $17) (27... Qxc2 $2 {perishes.} 28. Nxd4 Qd3 29. Ne6 $18) 28. Nxd4 $17) 27. Qd1 {[%emt 0:00:16]} Nxd4 {[%emt 0:06:10]} 28. Nxd4 {[%emt 0:00:05]} exd4 {[%emt 0:00:03]} 29. Re7 {[%emt 0:01:27]} Re8 {[%emt 0:01:46]} 30. Rxg7+ {[%emt 0:02:36] Black is clearly winning.} Kxg7 {[%emt 0:00:02]} 31. Qxd4+ {[%emt 0:00:10]} Kh7 {[%emt 0:00:10]} 32. Bd2 {[%emt 0:02:25] Wards off Re1+} Re5 {[%emt 0:02:27]} 33. h4 {[%emt 0:06:37]} Re4 {[%emt 0:03:34] Weighted Error Value: White=0.51/Black=0.06 (flawless) .  Loses game:     	White=1     	---        Mistake:       	White=3     	---        Inaccurate:     	White=3     	Black=1      OK:         	White=8     	Black=13     Best:        	---       	Black=2      Strong:       	White=1     	Black=1} 0-1

[Event "French-ch U16-U18 2024"]
[Site "Agen"]
[Date "2024.04.21"]
[Round "9.20"]
[White "Lesueur, Gabriel"]
[Black "Mendoza, Mael"]
[Result "0-1"]
[ECO "B96"]
[WhiteElo "2235"]
[BlackElo "2088"]
[Annotator "TA"]
[PlyCount "60"]
[EventDate "2024.04.14"]
[EventType "swiss"]
[EventCountry "FRA"]
[SourceTitle "playchess.com"]
[Source "ChessBase"]
[SourceQuality "1"]
[TimeControl "5400+30"]

{[%evp 16,60,27,15,24,19,12,0,-10,-21,-17,-27,0,0,-14,-25,0,-14,28,-97,0,-118,-58,-96,0,0,0,-43,-22,-46,-29,-229,-227,-648,-636,-669,-670,-771,-752,-755,-751,-950,-923,-945,-974,-972,-871]} 1. e4 {[%emt 0:00:18]} c5 {[%emt 0:00:12]} 2. Nf3 {[%emt 0:00:05]} d6 {[%emt 0:00:13]} 3. d4 {[%emt 0:00:06]} cxd4 {[%emt 0:00:05]} 4. Nxd4 {[%emt 0:00:04]} Nf6 {[%emt 0:00:06]} 5. Nc3 {[%emt 0:00:05]} a6 {[%emt 0:00:30]} 6. Bg5 {[%emt 0:00:10]} e6 {[%emt 0:00:07]} 7. f4 {[%emt 0:00:05]} h6 {[%emt 0:00:32]} 8. Bh4 {[%emt 0:00:10]} Qb6 {[%emt 0:00:09]} 9. a3 {[%emt 0:00:05]} Nbd7 {[%emt 0:00:37]} (9... Qxb2 $2 10. Na4 $18) 10. Bf2 {[%emt 0:00:06][%cal Od4e6] And now Nxe6! would win.} Qc7 {[%emt 0:00:24]} (10... Qxb2 $2 11. Na4 $18) 11. Qf3 {[%emt 0:00:05]} b5 {[%emt 0:04:06] The position is equal.} 12. O-O-O {[%emt 0:00:24]} Bb7 {[%emt 0:00:15]} 13. g4 {[%emt 0:00:05]} d5 {[%emt 0:00:53]} 14. e5 {[%emt 0:08:06]} Ne4 {[%emt 0:00:36]} 15. Nxe4 {[%emt 0:04:07]} dxe4 {[%emt 0:00:02]} 16. Qe3 {[%emt 0:00:02]} Rc8 {[%emt 0:14:03]} 17. Kb1 {[%emt 0:26:59]} (17. Bg2 $1 $11 {remains equal.}) 17... Bd5 {[%emt 0:15:46]} (17... Bc5 $17 18. c3 Nb6) 18. f5 {[%emt 0:16:51] [#]} (18. Bg2 $11 {keeps the balance.}) 18... Nxe5 {[%emt 0:17:53]} ({Black should try} 18... Bc5 $1 $17 {[%cal Rc5d4] White must now prevent ...Bxd4.} 19. c3 (19. fxe6 $2 fxe6 20. c3 O-O $19) 19... O-O (19... Qxe5 20. Bg3 $17)) 19. fxe6 {[%emt 0:00:54]} Nxg4 {[%emt 0:07:08]} ({Black should play} 19... fxe6 $17 20. Bg3 Nc4) 20. exf7+ $11 {[%emt 0:02:12]} Kxf7 {[%emt 0:02:21]} 21. Qh3 {[%emt 0:03:41]} Nxf2 {[%emt 0:04:09]} 22. Qf5+ {[%emt 0:00:23]} Kg8 $1 {[%emt 0:00:59][%cal Oc7f7] [#] Hoping for ...Qf7!} 23. Qxd5+ {[%emt 0:00:11] This move loses the game for White.} (23. Qxf2 $11 Qe5 (23... e3 24. Qxe3 Qf7 25. Rg1 $18) 24. Bg2) 23... Qf7 $19 {[%emt 0:00:01]} 24. Qe5 {[%emt 0:14:26]} (24. Qxf7+ Kxf7 25. Bg2 Nxd1 26. Rf1+ Kg8 27. Rxd1) 24... Re8 {[%emt 0:03:51] Black is clearly winning.} 25. Qg3 {[%emt 0:12:16]} Nxh1 {[%emt 0:00:23]} 26. Qc3 {[%emt 0:00:10]} Nf2 {[%emt 0:01:55]} 27. Re1 {[%emt 0:00:29]} g6 {[%emt 0:02:51]} 28. a4 {[%emt 0:00:21]} Bg7 {[%emt 0:06:33] Strongly threatening ...Rd8.} (28... bxa4 $2 {too greedy.} 29. Bc4 Rh7 30. Bxf7+ Rxf7 31. Qc6 $18) 29. axb5 {[%emt 0:00:31]} Kh7 {[%emt 0:00:15]} 30. bxa6 {[%emt 0:04:55]} Qd5 {[%emt 0:00:41] Weighted Error Value: White=0.60/Black=0.20 (precise) .  Loses game:     	White=1     	---        Mistake:       	White=3     	Black=3      Inaccurate:     	White=2     	Black=1      OK:         	White=4     	Black=5      Best:        	White=1     	Black=2      Strong:       	---       	Black=1} 0-1